bitfinex-derivatives/quotes_BTCF0:USTF0_20241208
["timestamp","ask_amount","ask_price","bid_price","bid_amount"]
[1733681250649,0.09084916,99950.0,99949.0,0.05112527]
[1733681250836,0.09084916,99950.0,99949.0,0.05112482]
[1733681251743,0.0011137,99950.0,99949.0,0.05112482]
[1733681254142,0.0011137,99950.0,99949.0,0.28994005]
[1733681255242,0.0011137,99950.0,99949.0,0.05112481]
[1733681257449,0.0011137,99950.0,99949.0,0.05112482]
[1733681261744,0.0011137,99950.0,99949.0,0.15117534]
[1733681261940,0.0011137,99950.0,99949.0,0.78430276]
[1733681262142,0.0011137,99950.0,99949.0,0.59747093]
[1733681263343,0.0011137,99950.0,99949.0,0.89627997]
[1733681263545,0.0011137,99950.0,99949.0,0.59747093]
[1733681264244,0.0011137,99950.0,99949.0,0.59746899]
[1733681264952,0.0011137,99950.0,99949.0,0.89627803]
[1733681265260,0.0011137,99950.0,99949.0,1.23346771]
[1733681265853,0.0011137,99950.0,99949.0,0.93465867]
[1733681266351,0.0011137,99950.0,99949.0,1.2335573]
[1733681266542,0.0011137,99950.0,99949.0,0.93436578]
[1733681266744,0.08973546,99958.0,99949.0,0.59746899]
[1733681266947,0.08973546,99958.0,99957.0,0.044994]
[1733681267147,0.08973546,99958.0,99957.0,0.46118935]
[1733681267546,0.08973546,99958.0,99957.0,0.46118785]
[1733681267752,0.08973546,99959.0,99957.0,0.56132235]
[1733681267947,0.08973546,99959.0,99958.0,0.00312657]
[1733681268347,0.11966704,99963.0,99960.0,7.306e-05]
[1733681268547,0.11966704,99963.0,99961.0,0.00312657]
[1733681268751,0.11966704,99963.0,99962.0,0.00312657]
[1733681269153,0.11966704,99964.0,99962.0,0.00312657]
[1733681269349,0.11966704,99964.0,99960.0,7.306e-05]
[1733681269350,0.11966704,99963.0,99960.0,0.00207306]
[1733681269549,0.16465904,99963.0,99961.0,0.00312642]
[1733681269749,0.045992,99963.0,99962.0,0.00312642]
[1733681270357,0.09462361,99963.0,99962.0,0.00312642]
[1733681270554,0.044992,99961.0,99960.0,0.00207306]
[1733681270854,0.044995,99954.0,99953.0,0.01]
[1733681271154,0.044998,99949.0,99948.0,0.01]
[1733681271346,0.045,99944.0,99943.0,0.055]
[1733681271550,0.14974593,99947.0,99941.0,0.3608]
[1733681271853,0.045001,99942.0,99941.0,0.3608]
[1733681273063,0.045001,99942.0,99941.0,0.3628]
[1733681273360,0.05508655,99942.0,99941.0,0.3628]
[1733681273550,0.05508655,99942.0,99941.0,0.3608]
[1733681273747,0.05508655,99942.0,99941.0,0.3628]
[1733681274152,0.08728655,99942.0,99941.0,0.3628]
[1733681274659,0.17714641,99942.0,99941.0,0.3628]
[1733681274861,0.17814641,99942.0,99941.0,0.3628]
[1733681275763,1e-06,99942.0,99941.0,0.407801]
[1733681275958,0.01,99953.0,99951.0,0.044997]
[1733681276154,0.044989,99969.0,99962.0,0.044992]
[1733681276155,0.01,99964.0,99962.0,0.044992]
[1733681276357,0.044989,99969.0,99963.0,0.22443486]
[1733681276657,0.044989,99969.0,99963.0,0.17944386]
[1733681276853,0.044989,99969.0,99965.0,0.22443386]
[1733681279051,0.046989,99969.0,99965.0,0.22443386]
[1733681279470,0.046989,99969.0,99966.0,0.04499]
[1733681279864,0.046989,99969.0,99967.0,0.044989]
[1733681281163,0.047989,99969.0,99967.0,0.044989]
[1733681281365,0.045989,99969.0,99967.0,0.044989]
[1733681281665,0.047989,99969.0,99967.0,0.044989]
[1733681281863,0.22771935,99969.0,99967.0,0.044989]
[1733681282066,0.04862715,99968.0,99967.0,0.044989]
[1733681282760,0.04862715,99968.0,99967.0,0.14502101]
[1733681282957,0.04862715,99968.0,99967.0,0.14814727]
[1733681283158,0.14968467,99968.0,99967.0,0.14502201]
[1733681283372,0.14968467,99968.0,99967.0,0.14814808]
[1733681283665,0.15266965,99969.0,99967.0,0.14814808]
[1733681283963,0.003,99969.0,99968.0,0.00312607]
[1733681284169,0.001,99969.0,99968.0,0.00312607]
[1733681284467,0.14966965,99973.0,99968.0,0.00312607]
[1733681284769,0.14966965,99973.0,99972.0,0.405787]
[1733681285066,0.14962904,99973.0,99972.0,0.40891304]
[1733681285263,0.14962904,99974.0,99972.0,0.40891304]
[1733681285564,0.0319,99976.0,99975.0,0.044986]
[1733681285765,0.0319,99976.0,99975.0,0.04811208]
[1733681285972,0.0805225,99976.0,99975.0,0.04811208]
[1733681286770,0.0319,99976.0,99975.0,0.04811208]
[1733681287466,0.18546679,99976.0,99975.0,0.04811208]
[1733681288269,0.18545447,99976.0,99975.0,0.04811208]
[1733681288570,0.19045447,99976.0,99975.0,0.044986]
[1733681288773,0.0409,99976.0,99975.0,0.04811203]
[1733681290271,0.0409,99976.0,99975.0,0.044986]
[1733681294380,0.04499,99966.0,99965.0,0.04499]
[1733681296976,0.04699,99966.0,99965.0,0.04499]
[1733681297786,0.04699,99966.0,99965.0,0.04811655]
[1733681298984,0.05719492,99966.0,99965.0,0.04811655]
[1733681300181,0.05719492,99966.0,99965.0,0.00312655]
[1733681300479,0.044991,99965.0,99955.0,0.01]
[1733681300681,0.044991,99965.0,99954.0,0.05523421]
[1733681300682,0.11963899,99964.0,99956.0,0.03564232]
[1733681300886,0.11963899,99964.0,99957.0,0.03564232]
[1733681301179,0.16462999,99963.0,99958.0,0.0031265]
[1733681301382,0.11963899,99961.0,99959.0,0.0031265]
[1733681301584,0.11963899,99961.0,99960.0,0.0031265]
[1733681301879,0.044991,99963.0,99960.0,0.0031265]
[1733681301880,0.11963899,99962.0,99960.0,0.0031265]
[1733681302081,0.11963899,99961.0,99954.0,0.044995]
[1733681302273,0.01020492,99966.0,99955.0,0.00312658]
[1733681302274,0.11963899,99960.0,99955.0,0.00312658]
[1733681302474,0.044995,99956.0,99950.0,0.01]
[1733681302674,0.044995,99956.0,99951.0,0.13568578]
[1733681302979,0.044995,99956.0,99952.0,0.03564325]
[1733681303181,0.16463399,99956.0,99953.0,0.00312658]
[1733681303384,0.16463399,99956.0,99954.0,0.00312658]
[1733681303679,0.16463399,99956.0,99955.0,0.00312661]
[1733681303886,0.16563399,99956.0,99955.0,0.00312661]
[1733681304090,0.045995,99956.0,99955.0,0.00312661]
[1733681304381,0.044995,99956.0,99955.0,0.00312661]
[1733681304582,0.045995,99956.0,99955.0,0.00312661]
[1733681305089,0.044995,99956.0,99955.0,0.00512661]
[1733681305384,0.044995,99956.0,99955.0,0.30401023]
[1733681306184,0.044995,99956.0,99955.0,0.64415176]
[1733681306386,0.044995,99956.0,99955.0,0.00512661]
[1733681307088,0.044995,99956.0,99955.0,0.002]
[1733681307282,0.044995,99956.0,99955.0,0.00512663]
[1733681309779,0.044995,99956.0,99955.0,0.002]
[1733681310184,0.044995,99956.0,99955.0,0.24170781]
[1733681310887,0.044995,99956.0,99955.0,0.002]
[1733681317887,0.044995,99956.0,99955.0,0.00512685]
[1733681320785,0.044995,99956.0,99955.0,0.00512684]
[1733681324495,0.044995,99956.0,99955.0,0.244879]
[1733681324792,0.044995,99956.0,99955.0,0.00512684]
[1733681332807,0.044995,99956.0,99955.0,0.30401046]
[1733681334213,0.044995,99956.0,99955.0,0.00512684]
[1733681337312,0.044995,99956.0,99955.0,0.05011884]
[1733681337516,0.14955447,99959.0,99955.0,0.46597135]
[1733681337723,0.2046231,99961.0,99960.0,0.044989]
[1733681337923,0.05506863,99961.0,99960.0,0.04811584]
[1733681339621,0.05606863,99961.0,99960.0,0.04811584]
[1733681341125,0.05606863,99961.0,99960.0,0.05011584]
[1733681341715,0.05606863,99961.0,99960.0,0.34998481]
[1733681342316,0.001,99961.0,99960.0,0.05011584]
[1733681342522,0.044984,99972.0,99971.0,0.044983]
[1733681342725,0.044984,99972.0,99971.0,0.40890984]
[1733681343229,0.044984,99972.0,99971.0,0.40890911]
[1733681344029,0.047984,99972.0,99971.0,0.40890911]
[1733681345130,0.050984,99972.0,99971.0,0.40890911]
[1733681346033,0.050984,99972.0,99971.0,0.405783]
[1733681346324,0.050984,99972.0,99971.0,0.80869667]
[1733681346325,0.006,99972.0,99971.0,0.80869667]
[1733681346524,0.12474561,99996.0,99979.0,0.044981]
[1733681346731,0.01,99995.0,99979.0,0.77452687]
[1733681346929,0.01015439,99994.0,99979.0,0.77452687]
[1733681347120,0.01015439,99994.0,99979.0,0.87455537]
[1733681347528,0.006126,99980.0,99979.0,0.87455537]
[1733681348023,0.000126,99980.0,99979.0,0.87455537]
[1733681348333,0.006126,99980.0,99979.0,0.54144498]
[1733681349032,0.004126,99980.0,99979.0,0.54144498]
[1733681350527,0.004126,99980.0,99979.0,0.78036913]
[1733681350724,0.004126,99980.0,99979.0,0.54144498]
[1733681350933,0.01,99995.0,99979.0,0.79646398]
[1733681351132,0.2325104,100010.0,100000.0,0.044971]
[1733681351432,0.2175104,100010.0,100000.0,0.11114297]
[1733681351621,0.07737,100010.0,100000.0,0.10801691]
[1733681352422,0.0324,100010.0,100000.0,0.30355745]
[1733681352724,0.0414,100010.0,100000.0,0.21213687]
[1733681353032,0.015,100010.0,100000.0,0.21313687]
[1733681353234,0.015,100010.0,100000.0,0.24563692]
[1733681353433,0.015,100010.0,100000.0,0.30868283]
[1733681353628,0.015,100010.0,100000.0,0.24563687]
[1733681354528,0.02524694,100010.0,100000.0,0.24563687]
[1733681356724,0.17496007,100010.0,100000.0,0.24563687]
[1733681357132,0.29408165,100010.0,100000.0,0.24563687]
[1733681357725,0.29408165,100010.0,100000.0,0.24251191]
[1733681359432,0.29408165,100010.0,100000.0,0.30555782]
[1733681359928,0.28383471,100010.0,100000.0,0.31845474]
[1733681360430,0.13412158,100010.0,100000.0,0.31845474]
[1733681361526,0.12812158,100010.0,100000.0,0.31745474]
[1733681362127,0.11912158,100010.0,100000.0,0.31845474]
[1733681363032,0.30102226,100020.0,100000.0,0.31845474]
[1733681363231,0.30102226,100020.0,100010.0,0.46881291]
[1733681363533,0.30102226,100020.0,100010.0,0.50130992]
[1733681363835,0.30102226,100020.0,100010.0,0.60129492]
[1733681363836,0.34598426,100020.0,100010.0,0.60129492]
[1733681364931,0.14019546,100020.0,100010.0,0.56879791]
[1733681365233,0.14219546,100020.0,100010.0,0.56879791]
[1733681365436,0.14219546,100020.0,100010.0,0.5812968]
[1733681366038,0.14219546,100020.0,100010.0,0.60129503]
[1733681366235,0.07914955,100020.0,100010.0,0.5812968]
[1733681366436,0.08114955,100020.0,100010.0,0.56879791]
[1733681366732,0.20724137,100020.0,100010.0,0.11248391]
[1733681366946,0.56804137,100020.0,100010.0,0.01249891]
[1733681367130,0.65708284,100020.0,100010.0,0.01249891]
[1733681367327,0.29628284,100020.0,100010.0,0.01249891]
[1733681367526,0.29628284,100020.0,100000.0,0.054969]
[1733681367527,0.044967,100010.0,100000.0,0.054969]
[1733681367725,0.109267,100010.0,100000.0,0.07747004]
[1733681367931,0.109267,100010.0,100000.0,0.17745504]
[1733681368932,0.109267,100010.0,100000.0,0.17945504]
[1733681370836,0.32440029,100010.0,100000.0,0.002]
[1733681371242,0.47411342,100010.0,100000.0,0.002]
[1733681371938,0.38493447,100010.0,99994.0,0.3608]
[1733681372144,0.044974,99995.0,99994.0,0.3608]
[1733681373343,0.044974,99995.0,99994.0,0.3618]
[1733681373344,0.16438159,99995.0,99994.0,0.3618]
[1733681373642,0.044974,99995.0,99994.0,0.00412544]
[1733681373842,0.045974,99995.0,99994.0,0.00412544]
[1733681376045,0.045974,99995.0,99994.0,0.00412546]
[1733681376342,0.001,99995.0,99994.0,0.04909946]
[1733681376539,0.001,99995.0,99994.0,0.14910496]
[1733681377248,0.001,99995.0,99994.0,0.18160694]
[1733681378340,0.001,99995.0,99994.0,0.18160606]
[1733681378839,0.001,99995.0,99994.0,0.48051913]
[1733681379645,0.001,99995.0,99994.0,0.80064342]
[1733681380147,0.001,99995.0,99994.0,0.48051913]
[1733681380740,0.001,99995.0,99994.0,0.50177931]
[1733681380946,0.01,100010.0,100000.0,0.044971]
[1733681381142,0.18452574,100020.0,100010.0,0.044967]
[1733681381338,0.17452574,100020.0,100010.0,0.82797784]
[1733681381543,0.17452574,100020.0,100010.0,0.92798334]
[1733681382147,0.32378523,100020.0,100010.0,0.92798334]
[1733681382739,0.32978523,100020.0,100010.0,0.92585788]
[1733681383040,0.32978523,100020.0,100010.0,0.92898266]
[1733681383235,0.18052574,100020.0,100010.0,0.92898266]
[1733681383445,0.33378523,100020.0,100010.0,0.92898266]
[1733681383641,0.33378523,100020.0,100010.0,0.56505788]
[1733681383837,0.33378523,100020.0,100010.0,0.46505238]
[1733681384452,0.32398893,100020.0,100010.0,0.18060802]
[1733681384748,0.42000064,100020.0,100010.0,0.18060802]
[1733681384949,0.47997851,100020.0,100010.0,0.001]
[1733681385344,0.69151902,100020.0,100010.0,0.001]
[1733681385751,0.33071902,100020.0,100010.0,0.001]
[1733681386048,0.69151902,100020.0,100010.0,0.001]
[1733681386953,0.7814074,100020.0,100010.0,0.001]
[1733681387140,1.02068398,100020.0,100010.0,0.001]
[1733681387547,0.7814074,100020.0,100010.0,0.001]
[1733681387752,0.68539569,100020.0,100010.0,0.001]
[1733681387943,0.56387449,100020.0,100010.0,0.001]
[1733681388146,0.39034206,100020.0,100010.0,0.001]
[1733681388342,0.36042796,100020.0,100010.0,0.001]
[1733681388546,0.36042796,100020.0,100010.0,0.00412508]
[1733681388950,0.39202796,100020.0,100010.0,0.00412508]
[1733681390855,0.75282796,100020.0,100010.0,0.00412508]
[1733681392859,0.75282796,100020.0,100010.0,0.00412525]
[1733681393053,0.78274206,100020.0,100010.0,0.00412525]
[1733681393451,0.99214541,100020.0,100010.0,0.00412525]
[1733681393952,0.99214541,100020.0,100010.0,0.001]
[1733681393953,0.85887832,100020.0,100010.0,0.001]
[1733681394151,1.09815712,100020.0,100010.0,0.001]
[1733681394346,1.00214541,100020.0,100010.0,0.001]
[1733681394550,1.09815712,100020.0,100010.0,0.001]
[1733681394858,1.00214541,100020.0,100010.0,0.001]
[1733681395062,1.09815712,100020.0,100010.0,0.001]
[1733681395363,1.41834912,100020.0,100010.0,0.001]
[1733681395558,1.20894577,100020.0,100010.0,0.001]
[1733681395754,1.20894577,100020.0,100000.0,0.01]
[1733681396058,1.20894577,100020.0,99997.0,0.01]
[1733681396059,0.91014232,100010.0,99997.0,0.01]
[1733681396257,0.91014232,100010.0,99991.0,0.01]
[1733681396258,0.044975,99992.0,99991.0,0.01]
[1733681396558,0.3608,99998.0,99983.0,0.17967581]
[1733681396559,0.044975,99993.0,99983.0,0.17967581]
[1733681396858,0.044979,99983.0,99982.0,0.17967581]
[1733681397063,0.044979,99983.0,99982.0,0.18280164]
[1733681397364,0.044979,99982.0,99981.0,0.17967581]
[1733681397661,0.044979,99982.0,99981.0,0.18280166]
[1733681397861,0.044979,99982.0,99981.0,0.00312585]
[1733681398856,0.044979,99982.0,99981.0,0.00912585]
[1733681398857,0.045979,99982.0,99981.0,0.00912585]
[1733681399064,0.045979,99982.0,99981.0,0.18874586]
[1733681399454,0.045979,99982.0,99981.0,0.18762001]
[1733681399655,0.045979,99982.0,99981.0,0.01112583]
[1733681399961,0.045979,99982.0,99981.0,0.19074584]
[1733681400362,0.045979,99982.0,99981.0,0.008]
[1733681400559,0.406779,99982.0,99981.0,0.008]
[1733681400765,0.52642174,99982.0,99981.0,0.008]
[1733681400962,0.406779,99982.0,99981.0,0.008]
[1733681404466,0.49631455,99982.0,99981.0,0.008]
[1733681404663,0.406779,99982.0,99981.0,0.008]
[1733681405966,0.49631455,99982.0,99981.0,0.008]
[1733681406354,0.406779,99982.0,99981.0,0.008]
[1733681409865,0.045979,99982.0,99981.0,0.05298]
[1733681410766,0.045979,99982.0,99981.0,0.41690596]
[1733681410966,0.001,99982.0,99981.0,0.41690596]
[1733681411564,0.001,99982.0,99981.0,0.46900303]
[1733681411763,0.001,99982.0,99981.0,0.46899941]
[1733681411971,0.001,99982.0,99981.0,0.46899763]
[1733681412963,0.001,99982.0,99981.0,0.44941147]
[1733681413564,0.001,99982.0,99981.0,0.62903148]
[1733681413761,0.001,99982.0,99981.0,0.72904998]
[1733681414382,0.001,99982.0,99981.0,0.56898733]
[1733681414774,0.001,99982.0,99981.0,0.54942997]
[1733681415470,0.001,99982.0,99981.0,0.56905092]
[1733681416260,0.001,99982.0,99981.0,0.7484289]
[1733681416870,0.001,99982.0,99981.0,0.56905092]
[1733681417977,0.001,99982.0,99981.0,0.54943109]
[1733681418674,0.001,99982.0,99981.0,0.54943102]
[1733681419279,0.045979,99982.0,99981.0,0.54943102]
[1733681419477,0.045979,99982.0,99981.0,0.51692402]
[1733681419864,0.045979,99982.0,99981.0,0.75621015]
[1733681420272,0.045979,99982.0,99981.0,0.51692402]
[1733681420574,0.001,99982.0,99981.0,0.54943042]
[1733681422374,0.001,99982.0,99981.0,0.84878492]
[1733681423380,0.001,99982.0,99981.0,1.1744625]
[1733681423877,0.001,99982.0,99981.0,0.72899252]
[1733681424277,0.001,99982.0,99981.0,0.56900141]
[1733681425578,0.001,99982.0,99981.0,0.53649501]
[1733681425782,0.001,99982.0,99981.0,0.56900047]
[1733681426981,0.08948858,99994.0,99993.0,0.044975]
[1733681427186,0.08948858,99995.0,99994.0,0.044974]
[1733681427382,0.26886654,100000.0,99995.0,0.044974]
[1733681427383,0.08948858,99996.0,99995.0,0.044974]
[1733681427580,0.20880173,100000.0,99995.0,0.41584054]
[1733681427887,0.20880173,100000.0,99999.0,0.044972]
[1733681428276,0.08948858,100000.0,99999.0,0.044972]
[1733681428582,0.08948858,100000.0,99999.0,0.06751021]
[1733681428787,0.08948858,100000.0,99999.0,0.16751471]
[1733681428984,0.09148858,100000.0,99999.0,0.16751471]
[1733681429489,0.09348858,100000.0,99999.0,0.16751471]
[1733681429784,0.09348858,100000.0,99999.0,0.19688939]
[1733681429973,0.09348858,100000.0,99999.0,0.20001435]
[1733681430178,0.004,100000.0,99999.0,0.20001435]
[1733681430475,0.004,100000.0,99999.0,0.37956143]
[1733681430679,0.08948858,100010.0,100000.0,0.044971]
[1733681430887,0.08948858,100010.0,100000.0,0.27934295]
[1733681431582,0.08948858,100010.0,100000.0,0.37934345]
[1733681431789,0.21888928,100020.0,100010.0,0.044967]
[1733681431988,0.08957613,100020.0,100010.0,0.64013895]
[1733681432290,0.08957613,100020.0,100010.0,0.64024541]
[1733681432291,8.755e-05,100020.0,100010.0,0.64024541]
[1733681432482,8.755e-05,100020.0,100010.0,1.01093781]
[1733681433574,0.00608755,100020.0,100010.0,0.97631418]
[1733681433773,0.00608755,100020.0,100010.0,1.0119318]
[1733681434174,0.00908755,100020.0,100010.0,1.0119318]
[1733681434380,0.00908755,100020.0,100010.0,1.3119318]
[1733681434583,0.00908755,100020.0,100010.0,1.51146243]
[1733681434888,0.00708755,100020.0,100010.0,1.51146243]
[1733681435088,0.00308755,100020.0,100010.0,1.51046243]
[1733681436391,0.01,100030.0,100020.0,0.044962]
[1733681436589,0.01,100040.0,100020.0,0.65286927]
[1733681436789,0.14443758,100050.0,100030.0,0.405758]
[1733681436999,0.13443758,100050.0,100040.0,0.405753]
[1733681437402,0.13443758,100050.0,100040.0,0.044953]
[1733681438093,0.25375073,100050.0,100040.0,0.044953]
[1733681438294,0.13443758,100050.0,100040.0,0.044953]
[1733681438497,0.25575073,100050.0,100040.0,0.044953]
[1733681439096,0.25775073,100050.0,100040.0,0.044953]
[1733681441196,0.21280173,100050.0,100040.0,0.405753]
[1733681441396,0.09348858,100050.0,100040.0,0.50570802]
[1733681441901,0.09348858,100050.0,100040.0,0.14490802]
[1733681442298,0.0352,100050.0,100040.0,0.50570802]
[1733681442793,0.004,100050.0,100040.0,0.50570802]
[1733681443103,0.004,100050.0,100040.0,0.53819503]
[1733681443297,0.004,100050.0,100040.0,0.60019569]
[1733681443513,0.004,100050.0,100040.0,0.56770868]
[1733681443699,0.004,100050.0,100040.0,0.60019444]
[1733681444010,0.002,100050.0,100040.0,0.60019444]
[1733681444199,0.006,100050.0,100040.0,0.60019444]
[1733681445509,0.004,100050.0,100040.0,0.60019444]
[1733681445705,0.01,100050.0,100040.0,0.57109444]
[1733681446003,0.087749,100050.0,100040.0,0.5193032]
[1733681446206,0.120649,100050.0,100040.0,0.50680868]
[1733681446599,0.120649,100050.0,100040.0,0.00110066]
[1733681446997,0.120649,100050.0,100030.0,0.415757]
[1733681446998,0.3487186,100050.0,100030.0,0.415757]
[1733681447202,0.3487186,100050.0,100030.0,0.41825347]
[1733681447203,0.31291301,100040.0,100030.0,0.41825347]
[1733681447395,0.31291301,100040.0,100030.0,0.51820849]
[1733681447595,0.37329926,100040.0,100030.0,0.3608]
[1733681448108,0.37329926,100040.0,100030.0,0.00012594]
[1733681448399,0.58523314,100040.0,100030.0,0.00012594]
[1733681449006,0.58623314,100040.0,100030.0,0.00012594]
[1733681449795,0.406754,100040.0,100030.0,0.00012594]
[1733681450005,0.408754,100040.0,100030.0,0.00012594]
[1733681450204,0.439154,100040.0,100030.0,0.00012594]
[1733681450404,0.439154,100040.0,100020.0,0.01]
[1733681450600,0.044963,100020.0,100010.0,0.425765]
[1733681450798,0.044963,100020.0,100010.0,0.44138576]
[1733681450999,0.044963,100020.0,100010.0,0.54135576]
[1733681451310,0.075763,100020.0,100010.0,0.54135576]
[1733681451911,0.34504279,100020.0,100010.0,0.55035576]
[1733681452603,0.22580733,100020.0,100010.0,0.55035576]
[1733681452808,0.22580733,100020.0,100010.0,0.15705963]
[1733681453105,0.76546052,100020.0,100010.0,0.153935]
[1733681453309,0.40466052,100020.0,100010.0,0.153935]
[1733681453608,0.40466052,100020.0,100010.0,0.1570599]
[1733681453808,0.43646052,100020.0,100010.0,0.1570599]
[1733681454797,0.108563,100020.0,100010.0,0.1570599]
[1733681456504,0.108563,100020.0,100010.0,0.33588822]
[1733681456711,0.108563,100020.0,100010.0,0.1570599]
[1733681457201,0.108563,100020.0,100010.0,0.33588822]
[1733681459807,0.108563,100020.0,100010.0,0.36838604]
[1733681460205,0.139563,100020.0,100010.0,0.36838604]
[1733681460598,0.22907972,100020.0,100010.0,0.36838604]
[1733681461512,0.22907972,100020.0,100010.0,0.36838603]
[1733681461813,0.25891862,100020.0,100010.0,0.18955771]
[1733681462112,0.25891862,100020.0,100010.0,0.1570599]
[1733681462707,0.7093076,100020.0,100010.0,0.01212492]
[1733681463007,0.94940733,100020.0,100010.0,0.00312492]
[1733681463210,0.044968,100010.0,100000.0,0.01]
[1733681463404,0.044968,100010.0,99998.0,0.01]
[1733681463405,0.044975,99993.0,99992.0,0.01]
[1733681463717,0.044977,99990.0,99989.0,0.00150002]
[1733681466206,0.045977,99990.0,99989.0,0.00350002]
[1733681466711,0.045977,99990.0,99989.0,0.00550002]
[1733681467114,0.045977,99990.0,99989.0,0.05048002]
[1733681467311,0.045977,99990.0,99989.0,0.00550002]
[1733681467811,0.045977,99990.0,99989.0,0.46631052]
[1733681467812,0.08939306,99990.0,99989.0,0.46631052]
[1733681468110,0.01,100010.0,100000.0,0.044975]
[1733681468311,0.53516883,100020.0,100010.0,0.04497]
[1733681468615,0.405766,100020.0,100010.0,0.04497]
[1733681469907,0.409766,100020.0,100010.0,0.04497]
[1733681470308,0.407766,100020.0,100010.0,0.04497]
[1733681470509,0.407766,100020.0,100010.0,0.04597]
[1733681470702,0.405766,100020.0,100010.0,0.04597]
[1733681471704,0.3608,100020.0,100010.0,0.04597]
[1733681471904,0.01,100030.0,100020.0,0.044966]
[1733681472102,0.445957,100040.0,100020.0,0.4382615]
[1733681472316,0.435957,100040.0,100030.0,0.044961]
[1733681472710,0.075157,100040.0,100030.0,0.405761]
[1733681472911,0.0302,100040.0,100030.0,0.405761]
[1733681473110,0.415754,100050.0,100040.0,0.044957]
[1733681473311,0.52515683,100050.0,100040.0,0.044957]
[1733681473512,0.54476545,100050.0,100040.0,0.044957]
[1733681473914,0.42536262,100050.0,100040.0,0.044957]
[1733681474219,0.16435683,100050.0,100040.0,0.044957]
[1733681474419,0.044954,100050.0,100040.0,0.044957]
[1733681475316,0.16435683,100050.0,100040.0,0.044957]
[1733681475811,0.17435683,100050.0,100040.0,0.044957]
[1733681476815,0.23380719,100050.0,100040.0,0.044957]
[1733681480723,0.23380719,100050.0,100030.0,0.05496]
[1733681480724,0.044957,100040.0,100030.0,0.05496]
[1733681480924,0.3729835,100040.0,100030.0,0.04496]
[1733681481125,0.58461019,100040.0,100030.0,0.04496]
[1733681482019,0.58461019,100040.0,100020.0,0.01]
[1733681482020,0.044961,100030.0,100020.0,0.054964]
[1733681482216,0.22493159,100030.0,100020.0,0.07745904]
[1733681482520,0.37298478,100030.0,100020.0,0.044964]
[1733681482726,0.14917059,100030.0,100020.0,0.50572901]
[1733681482928,0.26850936,100030.0,100020.0,0.538224]
[1733681483126,0.26850936,100030.0,100020.0,0.51822708]
[1733681483427,0.26850936,100030.0,100020.0,0.52022708]
[1733681484031,0.054958,100040.0,100030.0,0.044961]
[1733681484332,0.044958,100040.0,100030.0,0.044961]
[1733681485128,0.046958,100040.0,100030.0,0.044961]
[1733681485329,0.048958,100040.0,100030.0,0.044961]
[1733681485727,0.409758,100040.0,100030.0,0.044961]
[1733681486232,0.044961,100030.0,100020.0,0.054963]
[1733681486428,0.044961,100030.0,100020.0,0.05746054]
[1733681486624,0.044961,100030.0,100010.0,0.29827769]
[1733681486625,0.438561,100030.0,100010.0,0.29827769]
[1733681486933,0.044966,100020.0,100010.0,0.22183126]
[1733681487321,0.044966,100020.0,100010.0,0.15743126]
[1733681487634,0.044966,100020.0,100010.0,0.05746625]
[1733681487933,0.405766,100020.0,100010.0,0.044968]
[1733681488728,0.406766,100020.0,100010.0,0.047968]
[1733681489035,0.406766,100020.0,100010.0,0.049968]
[1733681489727,0.045966,100020.0,100010.0,0.049968]
[1733681494840,0.001,100020.0,100010.0,0.72216222]
[1733681495029,0.001,100020.0,100010.0,0.78169029]
[1733681495226,0.001,100020.0,100010.0,1.18394546]
[1733681495529,0.01,100030.0,100020.0,0.044966]
[1733681495733,0.01,100040.0,100030.0,0.044961]
[1733681496037,0.23989177,100050.0,100040.0,0.044957]
[1733681496238,0.22989177,100050.0,100040.0,0.044957]
[1733681496831,0.19689177,100050.0,100040.0,0.044957]
[1733681497035,0.74666987,100060.0,100050.0,0.044952]
[1733681497230,0.82618429,100060.0,100050.0,0.044952]
[1733681497830,0.6473311,100060.0,100050.0,0.044952]
[1733681498145,0.77287894,100060.0,100050.0,0.045952]
[1733681498440,0.41207894,100060.0,100050.0,0.045952]
[1733681498740,0.27190835,100060.0,100050.0,0.045952]
[1733681498937,0.31658911,100060.0,100050.0,0.045952]
[1733681499246,0.34379226,100060.0,100050.0,0.50669703]
[1733681499442,0.34379226,100060.0,100050.0,0.51919127]
[1733681500038,0.16448619,100060.0,100050.0,0.51919127]
[1733681500742,0.16248619,100060.0,100050.0,0.51819127]
[1733681501436,0.15948619,100060.0,100050.0,0.51819127]
[1733681502945,0.15948619,100060.0,100050.0,0.51819068]
[1733681504244,0.27884431,100060.0,100050.0,0.51819068]
[1733681505546,0.27884431,100060.0,100050.0,0.50569703]
[1733681505746,0.15948619,100060.0,100050.0,0.15739087]
[1733681505941,0.32377708,100060.0,100050.0,0.05744584]
[1733681506145,0.38374026,100060.0,100050.0,0.044952]
[1733681507037,0.05505951,100060.0,100050.0,0.044952]
[1733681507438,0.05505951,100060.0,100050.0,0.14489703]
[1733681507744,0.05505951,100060.0,100050.0,0.50569703]
[1733681513652,0.05505951,100060.0,100050.0,0.51819111]
[1733681514247,0.32376786,100060.0,100050.0,0.50569703]
[1733681515052,0.32376786,100060.0,100050.0,0.51819112]
[1733681515248,0.32376786,100060.0,100050.0,0.044952]
[1733681515553,0.35636786,100060.0,100050.0,0.044952]
[1733681515851,0.23703419,100060.0,100050.0,0.044952]
[1733681516354,0.41634026,100060.0,100050.0,0.044952]
[1733681518848,0.44794026,100060.0,100050.0,0.044952]
[1733681519454,0.29856558,100060.0,100050.0,0.044952]
[1733681519759,0.44776865,100060.0,100050.0,0.044952]
[1733681520452,0.44780932,100060.0,100050.0,0.405752]
[1733681521056,0.29856558,100060.0,100050.0,0.405752]
[1733681521244,0.3471481,100060.0,100050.0,0.405752]
[1733681521447,0.29856558,100060.0,100050.0,0.405752]
[1733681522045,0.23870732,100060.0,100050.0,0.405752]
[1733681523351,0.38801709,100060.0,100050.0,0.58487507]
[1733681523856,0.38801709,100060.0,100050.0,0.405752]
[1733681524161,0.39785198,100060.0,100050.0,0.405752]
[1733681524344,0.45771024,100060.0,100050.0,0.58487507]
[1733681525247,0.81851024,100060.0,100050.0,0.17912307]
[1733681525452,0.66920047,100060.0,100050.0,0.17912307]
[1733681525658,0.66920047,100060.0,100040.0,0.8435257]
[1733681525853,0.22489561,100050.0,100040.0,0.86513303]
[1733681526057,0.344685,100050.0,100040.0,0.96507806]